Cogmind - Beta 14 @@@ ROGUE MODE // 2024.09.11 @ 12:57:25 // AFD2020/Player2 Player: Minty Result: Destroyed by KN-EKE(R) with Subdweller Laser Performance ------------- Evolutions (0) 0 Regions Visited (2) 400 Robots Destroyed (11) 55 Value Destroyed (337) 337 Prototype IDs (0) 0 Alien Tech Used (0) 0 Bonus (-197) -197 TOTAL SCORE: 595 Bonus ------- Follower Combat Kills 42 Friendly Fire -239 Cogmind --------- Core Integrity 0/250 Matter 290/300 Energy 250/250 System Corruption 0% Temperature Cool (6) Movement Treading (160) Location -10/Subcaves Parts ------- > --- POWER (1) -------- Ion Engine > --- PROPULSION (2) --- Light Treads Light Treads > --- UTILITY (2) ------ Scrap Shield > --- WEAPON (2) ------- Subdweller Beam Cannon Grenade Launcher > --- INVENTORY (5) ---- Small Storage Unit Improved Terrain Scanner Hardened Light Armor Plating Hacking Suite Tractor Beam Peak State ------------ > --- POWER ------------ Ion Engine > --- PROPULSION ------- Light Treads Light Treads > --- UTILITY ---------- Scrap Shield > --- WEAPON ----------- Subdweller Beam Cannon Grenade Launcher > --- INVENTORY -------- Small Storage Unit Improved Terrain Scanner Hardened Light Armor Plating Hacking Suite Tractor Beam [Rating: 11] Favorites ----------- Power Light Ion Engine Engine Light Ion Engine Propulsion Light Treads Treads Light Treads Leg Aluminum Leg Wheel Wheel Utility Small Storage Unit Device Sensor Array Storage Small Storage Unit Protection Scrap Shield Weapon Assault Rifle Energy Gun Small Laser Energy Cannon Subdweller Beam Cannon Ballistic Gun Assault Rifle Launcher Grenade Launcher Special Melee Weapon Datajack Build | -11 -10 -10 ------- Run | Yrd Mat Sub Slots Evolved . | . . . Power . | . . . Propulsion . | . . . Utility . | . . . Weapon . | . . . Parts Attached 13 | . 11 2 Power 1 | . 1 . Engine 1 | . 1 . Core . | . . . Reactor . | . . . Propulsion 4 | . 4 . Treads 2 | . 2 . Leg . | . . . Wheel 2 | . 2 . Hover . | . . . Flight . | . . . Utility 4 | . 3 1 Device 1 | . 1 . Storage . | . . . Processor . | . . . Hackware . | . . . Protection 3 | . 2 1 Artifact . | . . . Weapon 4 | . 3 1 Energy Gun . | . . . Energy Cannon 1 | . . 1 Ballistic Gun 1 | . 1 . Ballistic Cannon . | . . . Launcher 1 | . 1 . Special Weapon . | . . . Impact Weapon . | . . . Slashing Weapon . | . . . Piercing Weapon . | . . . Special Melee Weapon 1 | . 1 . Unidentified Prototypes . | . . . Parts Lost . | . . . Power . | . . . Propulsion . | . . . Utility . | . . . Weapon . | . . . Highest Loss Streak . | . . . To Critical Strikes . | . . . Average Slot Usage (%) 87 | . 88 85 Engine 14 | . 14 14 Treads 22 | . 20 28 Wheel 5 | . 7 . Storage 9 | . 14 . Protection 8 | . 5 13 Energy Cannon 2 | . . 7 Ballistic Gun 11 | . 14 6 Launcher 11 | . 9 14 Special Melee Weapon 1 | . 1 . Peak Build Rating 11 | . 9 11 Average Rating 8 | . 6 10 On Entrance 7 | 6 6 9 Naked Turns . | . . . Heaviest Build 34 | 10 20 34 Greatest Support 40 | 20 40 40 Greatest Overweight (x) 3 | . 3 . Average Overweight (x) . | . . . Largest Inventory Capacity 8 | . 8 8 Average Capacity 6 | . 8 5 Most Carried 8 | . 8 8 Average Carried 6 | . 7 5 Final Capacity 8 | 8 8 5 Final Carried 8 | 6 8 5 Class Distribution -------------------- 100% | Mutant Dominant Class ---------------- Mutant | -10/Materials Mutant | -10/Subcaves Resources | -11 -10 -10 ----------- Run | Yrd Mat Sub Matter Collected 621 | 200 183 238 Remotely . | . . . Salvage Created 350 | . 160 190 Parts 28 | . 10 18 Haulers Intercepted . | . . . Recyclers Shooed 2 | . 2 . Parts Field Recycled . | . . . Retrieved Matter . | . . . Parts Self-Destructed 8 | . . 8 Prevented . | . . . Kills | -11 -10 -10 ------- Run | Yrd Mat Sub Combat Hostiles Destroyed 8 | . 2 6 Guns 1 | . 1 . AOE 6 | . 1 5 Classes Destroyed 6 | . 4 2 Tunneler 1 | . 1 . Recycler 1 | . 1 . Operator 1 | . 1 . Swarmer 1 | . . 1 Grunt 2 | . 2 . Subdweller 5 | . . 5 Best Kill Streak 2 | . 2 2 Combat Bots Only 2 | . 1 2 Max Kills in Single Turn 1 | . 1 1 Gunslinging . | . . . Exploded 1 | . 1 1 Melee . | . . . Uniques/NPCs Destroyed . | . . . Combat | -11 -10 -10 -------- Run | Yrd Mat Sub Hostile Shots Fired 28 | . . 28 Missed 9 | . . 9 Damage Taken 398 | . 43 355 Core 72 | . . 72 Absorbed by Shields . | . . . Core Remaining (%) 100 | 100 . . Volleys Fired 62 | . 43 19 Largest 2 | . 2 2 Hottest 80 | . 50 80 Shots Fired 68 | . 44 24 Gun 40 | . 31 9 Cannon 8 | . . 8 Launcher 20 | . 13 7 Special . | . . . Kinetic 40 | . 31 9 Thermal 8 | . . 8 Explosive 20 | . 13 7 Electromagnetic . | . . . Robot Hit Streak 11 | . 8 11 Robot Miss Streak 3 | . 2 3 Penetration Max . | . . . Secondary Targets . | . . . Shots Hit Robots 40 | . 22 18 Core Hits 24 | . 9 15 Critical Kills 1 | . . 1 Critical Parts Destroyed . | . . . Critical Strikes 2 | . . 2 Meltdown 1 | . . 1 Destroy 1 | . . 1 Melee Attacks 3 | . 3 . Impact . | . . . Slashing . | . . . Piercing . | . . . Sneak Attacks 2 | . 2 . Combat Hostiles . | . . . Follow-up Attacks . | . . . Damage Inflicted 1330 | . 457 873 Guns 308 | . 197 111 Cannons 52 | . . 52 Explosions 967 | . 258 709 Melee . | . . . Ramming 3 | . 2 1 Kinetic 308 | . 197 111 Thermal 52 | . . 52 Explosive 967 | . 258 709 Electromagnetic . | . . . Impact . | . . . Slashing . | . . . Piercing . | . . . Highest Corruption . | . . . Average Corruption . | . . . Corruption Purged . | . . . Corruption Blocked . | . . . Overload Shots . | . . . Overflow Damage 13 | . 8 5 Projectiles 5 | . . 5 Explosions 8 | . 8 . Melee . | . . . Knockbacks . | . . . Impact . | . . . Kinetic . | . . . Secondary . | . . . Self-Inflicted Damage 113 | . 43 70 Shots 6 | . 3 3 Rammed 4 | . 3 1 Targets Rammed 4 | . 3 1 Kicked . | . . . Crushed . | . . . Highest Temperature 36 | . . 36 Average Temperature 24 | . . 24 Received Heat Transfer 87 | . . 87 Siege Activations . | . . . Robots Corrupted . | . . . Combat Hostiles . | . . . Parts Fried . | . . . Impact Corruptions . | . . . Robots Melted 1 | . . 1 Combat Hostiles 1 | . . 1 Parts Melted 1 | . . 1 Heat Transferred 74 | . . 74 Parts Sabotaged . | . . . Parts Stolen . | . . . Parts Stripped . | . . . Power Chain Reactions . | . . . Alert | -11 -10 -10 ------- Run | Yrd Mat Sub Peak Influence 350 | . 350 . Initial . | . . . Average 154 | . 154 . Maximum Alert Level 1 | . 1 . Low Security (%) 61 | . 61 . Level 1 38 | . 38 . Level 2 . | . . . Level 3 . | . . . Level 4 . | . . . Level 5 . | . . . High Security . | . . . Max Security . | . . . Squads Dispatched 2 | . 2 . Investigation . | . . . Extermination . | . . . Reinforcement 2 | . 2 . Assault . | . . . Garrison . | . . . Intercept . | . . . Searches Triggered . | . . . Construction Impeded . | . . . Haulers Reinforced . | . . . Active Scanning Responses . | . . . Cargo Convoy Interrupts . | . . . Stealth | -11 -10 -10 --------- Run | Yrd Mat Sub Distress Signals 2 | . 2 . Communications Jammed . | . . . Distress Signals . | . . . Times Spotted 39 | . 12 27 Peak Tracking Total 6 | . 3 6 Tactical Retreats 2 | . 1 1 Traps | -11 -10 -10 ------- Run | Yrd Mat Sub Traps Triggered . | . . . Indirectly . | . . . Trap Hack Attempts . | . . . Triggered . | . . . Disarmed . | . . . Reprogrammed . | . . . Reused . | . . . Traps Extracted . | . . . Installed . | . . . Triggered . | . . . Machines | -11 -10 -10 ---------- Run | Yrd Mat Sub Machines Disabled 3 | . 3 . Max in Single Turn 2 | . 2 . Machines Repaired . | . . . Machines Dismantled . | . . . Machines Sabotaged . | . . . Overloaded Fab Kills . | . . . Hacking | -11 -10 -10 --------- Run | Yrd Mat Sub Machines Accessed 2 | . 2 . Terminals 2 | . 2 . Fabricators . | . . . Repair Stations . | . . . Recycling Units . | . . . Scanalyzers . | . . . Garrison Access . | . . . Total Hacks 5 | . 5 . Successful 1 | . 1 . Failed 4 | . 4 . Catastrophic . | . . . Database Lockouts . | . . . Manual 5 | . 5 . Terminals 5 | . 5 . Fabricators . | . . . Repair Stations . | . . . Recycling Units . | . . . Scanalyzers . | . . . Garrison Access . | . . . Terminal Hacks . | . . . Fabricator Hacks . | . . . Repair Station Hacks . | . . . Recycling Unit Hacks . | . . . Scanalyzer . | . . . Garrison Access Hacks . | . . . Unauthorized Hacks 1 | . 1 . Terminals 1 | . 1 . Operators 1 | . 1 . Fabricators . | . . . Repair Stations . | . . . Recycling Units . | . . . Scanalyzers . | . . . Garrison Access . | . . . Data Cores Recovered 1 | . 1 . Used . | . . . Hacking Detections 2 | . 2 . Full Trace Events . | . . . Feedback Events . | . . . Feedback Blocked . | . . . Robot Schematics Acquired . | . . . Robots Built . | . . . Authchips . | . . . Time . | . . . Total Robot Build Rating . | . . . Part Schematics Acquired . | . . . Parts Built . | . . . Authchips . | . . . Time . | . . . Total Part Build Rating . | . . . Parts Repaired . | . . . Time . | . . . Parts Recycled . | . . . Recycled Matter . | . . . Retrieved Matter . | . . . Retrieved Components . | . . . Parts Scanalyzed . | . . . Part Schematics Acquired . | . . . Parts Damaged . | . . . Bothacking | -11 -10 -10 ------------ Run | Yrd Mat Sub Used RIF Installer . | . . . Robots Hacked 1 | . 1 . Non-combat 1 | . 1 . Combat . | . . . Robot Hacks Applied 1 | . 1 . check_alert 1 | . 1 . Relay Couplers Released . | . . . Fabnet Peak Effective % . | . . . Robots Rewired . | . . . Allies Hacked . | . . . Hacks Repelled . | . . . Allies | -11 -10 -10 -------- Run | Yrd Mat Sub Total Allies 1 | . 1 . Largest Group 1 | . 1 1 Highest-Rated Group 61 | . 59 61 Highest-Rated Ally 61 | . 59 61 Total Orders . | . . . Ally Attacks 36 | . 26 10 Total Damage 478 | . 344 134 Kills 9 | . 8 1 Allies Corrupted . | . . . Allies Melted . | . . . Intel | -11 -10 -10 ------- Run | Yrd Mat Sub Robot Analysis Total . | . . . Derelict Logs Recovered 1 | . . 1 Drone Launches . | . . . Drone Recoveries . | . . . Exploration | -11 -10 -10 ------------- Run | Yrd Mat Sub Turns Passed 889 | . 573 316 Spaces Moved 485 | 1 325 159 Core 3 | . 3 . Treads 346 | . 187 159 Legs 1 | 1 . . Wheels 135 | . 135 . Hover . | . . . Flight . | . . . Fastest Speed 90 | 120 90 160 Average Speed 140 | 120 131 160 Slowest Speed 200 | 120 200 160 Overloaded Moves . | . . . Propulsion Burnouts . | . . . Robots Hopped . | . . . Cave-ins Triggered . | . . . Exploration Rate (%) 21 | 2 47 15 Regions Visited 2 Branch Regions 1 Pre-discovered Areas 1 | . . 1 Known Exits Taken . | . . . Unknown Exits Taken 2 | 1 1 . Scrap Searched . | . . . Spaces Dug 18 | . 18 . Terrain Destroyed 158 | . 107 51 Melee . | . . . Projectile 3 | . . 3 AOE 155 | . 107 48 Terrain Rammed . | . . . Walls Destroyed . | . . . Machines Disabled . | . . . Actions | -11 -10 -10 --------- Run | Yrd Mat Sub Total 626 | . 428 198 Wait 27 | . 19 8 Move 483 | . 324 159 Hop . | . . . Pick Up 12 | . 12 . Fast Attach 4 | . 3 1 Attach 5 | . 5 . Detach 3 | . 1 2 Swap 4 | . 3 1 Drop 17 | . 12 5 Fire 62 | . 43 19 Melee 3 | . 3 . Ram . | . . . Kick . | . . . Crush 4 | . 3 1 Escape Stasis . | . . . Rewire . | . . . Trap . | . . . Miscellaneous 2 | . . 2 Route ------- -11/Scrapyard -10/Materials (discovered 2 exits: [*Mat] / [*Sub]) -10/Subcaves (discovered 2 exits: Mat / [*Rec]) History --------- Turn | Location | Event 1 | -11/Scrapyard | Discovered new exit (range 0) 1 | -11/Scrapyard | Entered Materials 157 | -10/Materials | Discovered new exit (range 3) 317 | -10/Materials | Build established: Mutant 560 | -10/Materials | Discovered new exit (range 10) 574 | -10/Materials | Entered Subcaves 576 | -10/Subcaves | Identified exit to Materials 691 | -10/Subcaves | Ambushed by swarm of Subdwellers 694 | -10/Subcaves | Ambushed by Subdwellers from Twisted Machinery 695 | -10/Subcaves | Core integrity fell below 50% 695 | -10/Subcaves | Ambushed by Subdwellers from Twisted Machinery 695 | -10/Subcaves | Ambushed by Subdwellers from Twisted Machinery 700 | -10/Subcaves | Core integrity fell below 20% 795 | -10/Subcaves | Discovered new exit (range 14) 878 | -10/Subcaves | Learned location of Zion (-6) 878 | -10/Subcaves | Met a Zionite searching for "candidates" 888 | -10/Subcaves | Ambushed by Subdwellers from Twisted Machinery 890 | -10/Subcaves | Destroyed by KN-EKE(R) with Subdweller Laser Last Messages --------------- 00788_ M5-2NW(g) destroyed. 00789_ HV Slug penetrates Wall. 00789_ HV Slug penetrates Autobeam Turret. 00789_ Autobeam Turret destroyed. 00791_ Flight Unit fries itself beyond repair. 00792_ Lgt. Ion Engine fries itself beyond repair. 00793_ HV Slug penetrates Wall. 00793_ Autobeam Turret suffers critical hit (Destroy). 00793_ Autobeam Turret destroyed. 00794_ Autobeam fries itself beyond repair. 00795_ EXIT=FOUND 00796_ Lgt. Assault Rifle fries itself beyond repair. 00805_ Acquired 10 matter. 00824_ VT-DD3(z): "She is not going to be happy we haven't found any suitable candidates yet." 00878_ VT-DD3(z): "Hey you! It's really dangerous down here, I feel that you could die at any moment. For your health and safety might I suggest a trip to Zion?" World map updated: -6/Zion. 00888_ JV-173(R) emerges from the Twisted Machinery. Map ----- +----------------------------------------------------+ | ???????????????????????????????????????????? | | ???????????????????????????????????????????? | | ???????????????????????????????????????????? | | ???????????????????????????????????????????? | | ???????????????????????????????????????????? | | ???????????????????????????????????????????? | | ???????????????????????????????????????????? | | ???????????????????????????????????????????? | | ???????????????????????????????????????????? | | ???????????????????????????????????????????? | | ???????????????????????????????????????????? | | ???????????????????????????????????????????? | | ?????????????????? ????????????????????????? | | ?????????????????## ???????????????????????? | | ????????????????## "????#?????????????????? | | ????????????????? % "??? ?????????????????? | | ??????????????? ?? R ??? ##???????????????? | | ???????????????? ? ### #???????????????? | | ??????? #???????# ? R# #???????????????? | | ????? #??????# ? ##??????????????? | | ??? #?????# ? #??????????????? | | ??? ?????? ? #??????????????? | | ???? #??????? ## #??????????????? | | ????? #???????# #??????????????? | | ?????? #??????# #???????????????? | | ??????? ##????# % @#????????????????? | | ???????? #????# ## #????????????????? | | ????????? #????# ####?????????????? | | ??????????# #???## #?????????????? | | ???????????# #???# g h #?????????????? | | ????????????# #???## z #?????????????? | | ?????????????# #????## ###?????????????? | | ???????????### #?????## @####?????????????? | | ??????????## ##?????#### #?????????????? | | ??????????# #???????## ##????????????? | | ??????????# ##?????## #????????????? | | ?????##???## ##????# #????????????? | | ?#####<###### ####?## #????????????? | | ?#" " """"# ##?# ##????????????? | | ?# % "## # ### ##?????????????? | | ?# % % ## ## %##??????????????? | | ?# ## ## ##???????????????? | | ?#%% ## ##### #????????????????? | | ?# % "## % #???### ##????????????????? | | ??#"" #"### ##?????# #????????????????? | | ????# % % # ##??### ##????????????????? | | ????## # ### #????????????????? | | ?????##% #????????????????? | | ??????## #????????????????? | | ???????## % ###????????????????? | +----------------------------------------------------+ Best States ------------- Heat Dissipation 25 Energy Generation 10 Energy Capacity 250 Matter Stores 300 Matter Capacity 300 Sight Range 16 Terrain Scan Density 10 Armor Coverage 800 Propulsion Shielding 33 Evasion (%) 42 Recoil Reduction 2 Item Schematics ----------------- None Robot Schematics ------------------ None Fabricated ------------ Nothing Alien Tech Used ----------------- None Achievements -------------- None Challenges ------------ None Player 2 | -11 -10 -10 ---------- Run | Yrd Mat Sub Slots Evolved . | . . . Power . | . . . Propulsion . | . . . Utility . | . . . Weapon . | . . . Parts Attached 17 | . 11 6 Parts Lost 3 | . 2 1 Damage Taken 724 | . 436 288 Core 180 | . 122 58 Player 2/Cogmind (%) 71 | . 100 44 Absorbed by Shields . | . . . Damage Inflicted 478 | . 344 134 Player 2/Cogmind (%) 26 | . 42 13 Combat Hostiles Destroyed 6 | . 5 1 Player 2/Cogmind (%) 42 | . 71 14 Game ------ Seed PulseTacticalMicrothruster Manual? 0 Play Time 00:07:51 Cumulative 929.5 hours Start 2024.09.11 @ 12:51:55 End 2024.09.11 @ 12:57:25 Sessions 1 Manual Loads 0 Difficulty Rogue Special Mode AFD2020/Player2 Game No. 1130 Rogue 850 Adventurer 124 Explorer 156 Win Type - Total 39 Types 28/0/8/1/1/0/0/1/0 Lore% 81 Gallery% 90 Achievement% 78 Wizard Run 0 Options --------- Layout 0 ASCII 0 Keyboard 1 Movement Numpad Keybinds 0 Fullscreen 2 Font 18/X11 Map View 76x50 Zoom Use 0% Tactical HUD 1 Map Filters NONE Filters NONE Steam 1 RUN: aee1a060-22c6-4488-8a8c-80921b7f2297